Cogmind - Beta 16 *** ADVENTURER MODE // 2026.01.26 @ 03:51:27 Player: CCCC Result: Destroyed by OW-CZI(R) with Subdweller Laser Performance ------------- Evolutions (0) 0 Regions Visited (2) 400 Robots Destroyed (0) 0 Value Destroyed (0) 0 Prototype IDs (0) 0 Alien Tech Used (0) 0 Bonus (0) 0 TOTAL SCORE: 400 Bonus ------- None Cogmind --------- Core Integrity 0/250 Matter 178/300 Energy 100/100 System Corruption 0% Temperature Cool (6) Movement Walking (120) Location -10/Subcaves Parts ------- > --- POWER (1) -------- (None) > --- PROPULSION (2) --- Aluminum Leg Aluminum Leg > --- UTILITY (2) ------ Small Storage Unit > --- WEAPON (2) ------- (None) > --- INVENTORY (8) ---- Wheel Compact Wheel Huge Storage Unit High-capacity Matter Pod (183) High-capacity Matter Pod (0) Peak State ------------ > --- POWER ------------ Light Ion Engine > --- PROPULSION ------- Wheel Wheel > --- UTILITY ---------- Small Storage Unit Makeshift Light Armor Plating > --- WEAPON ----------- Assault Rifle Light Assault Rifle > --- INVENTORY -------- Light Ion Engine Aluminum Leg Aluminum Leg Compact Wheel Huge Storage Unit High-capacity Matter Pod High-capacity Matter Pod [Rating: 10] Favorites ----------- Power Light Ion Engine Engine Light Ion Engine Propulsion Wheel Leg Aluminum Leg Wheel Wheel Utility Small Storage Unit Storage Small Storage Unit Protection Makeshift Light Armor Plating Weapon Light Assault Rifle Energy Gun Small Laser Ballistic Gun Light Assault Rifle Special Weapon Flamer Special Melee Weapon Datajack Build | -11 -10 -10 ------- Run | Yrd Mat Sub Slots Evolved . | . . . Power . | . . . Propulsion . | . . . Utility . | . . . Weapon . | . . . Parts Attached 14 | 6 3 5 Power 2 | 1 . 1 Engine 2 | 1 . 1 Core . | . . . Reactor . | . . . Propulsion 4 | 2 . 2 Treads . | . . . Leg 2 | . . 2 Wheel 2 | 2 . . Hover . | . . . Flight . | . . . Utility 3 | 1 1 1 Device . | . . . Storage 2 | 1 1 . Processor . | . . . Hackware . | . . . Protection 1 | . . 1 Artifact . | . . . Weapon 5 | 2 2 1 Energy Gun 1 | 1 . . Energy Cannon . | . . . Ballistic Gun 2 | 1 1 . Ballistic Cannon . | . . . Launcher . | . . . Special Weapon 1 | . . 1 Impact Weapon . | . . . Slashing Weapon . | . . . Piercing Weapon . | . . . Special Melee Weapon 1 | . 1 . Unidentified Prototypes . | . . . Parts Lost 8 | . . 8 Power 2 | . . 2 Propulsion 2 | . . 2 Utility 1 | . . 1 Weapon 3 | . . 3 Highest Loss Streak 5 | . . 5 To Critical Strikes . | . . . Average Backups 6 | 2 7 6 Power . | . 1 . Propulsion 2 | 1 3 2 Utility 2 | . 1 3 Weapon . | . 1 . Tool/Special . | . . . Unused Backups 5 | . 2 3 Power . | . . . Propulsion 3 | . 2 1 Utility 2 | . . 2 Weapon . | . . . Tool/Special . | . . . Average Slot Usage (%) 84 | . 85 84 Engine 13 | . 14 12 Leg 4 | . . 9 Wheel 21 | . 28 15 Storage 14 | . 14 14 Protection 5 | . . 10 Energy Gun 1 | . 3 . Ballistic Gun 18 | . 17 20 Special Melee Weapon 3 | . 6 . Peak Build Rating 10 | 6 7 10 Average Rating 7 | 3 6 8 On Entrance 4 | . 6 6 Avg Prop Armor Cover (%) . | . . . Naked Turns . | . . . Heaviest Build 85 | 10 85 15 Greatest Support 20 | 20 20 20 Greatest Overweight (x) 4 | . 4 . Average Overweight (x) . | . 1 . Largest Inventory Capacity 25 | 8 25 8 Average Capacity 11 | 6 15 8 Most Carried 9 | 4 9 8 Average Carried 6 | 2 7 6 Final Capacity 8 | 8 8 8 Final Carried 8 | 4 8 5 Class Distribution -------------------- 100% | Mutant Dominant Class ---------------- Mutant | -10/Materials Mutant | -10/Subcaves Resources | -11 -10 -10 ----------- Run | Yrd Mat Sub Matter Collected 507 | 226 225 56 Remotely . | . . . Salvage Created . | . . . Parts . | . . . Haulers Intercepted . | . . . Recyclers Shooed . | . . . Parts Field Recycled . | . . . Retrieved Matter . | . . . Parts Self-Destructed 4 | . . 4 Prevented . | . . . Parts Restored . | . . . Kills | -11 -10 -10 ------- Run | Yrd Mat Sub Combat Hostiles Destroyed . | . . . Classes Destroyed . | . . . Best Kill Streak . | . . . Combat Bots Only . | . . . Max Kills in Single Turn . | . . . Gunslinging . | . . . Exploded . | . . . Melee . | . . . Uniques/NPCs Destroyed . | . . . Combat | -11 -10 -10 -------- Run | Yrd Mat Sub Hostile Shots Fired 85 | . . 85 Missed 22 | . . 22 Hits 63 | . . 63 Projectile 63 | . . 63 Critical Strikes 1 | . . 1 Damage Taken 1046 | . 15 1031 Core 266 | . . 266 Absorbed by Shields . | . . . Ignored by Resistances 295 | . 5 290 Core Remaining (%) 100 | 100 . . Volleys Fired 47 | . 6 41 Largest 2 | . 2 2 Hottest 120 | . 40 120 Shots Fired 79 | . 12 67 Gun 74 | . 12 62 Cannon . | . . . Launcher . | . . . Special 5 | . . 5 Kinetic 74 | . 12 62 Thermal 5 | . . 5 Explosive . | . . . Electromagnetic . | . . . Robot Hit Streak 38 | . . 38 Robot Miss Streak 1 | . . 1 Penetration Max . | . . . Secondary Targets . | . . . Shots Hit Robots 64 | . 2 62 Core Hits 1 | . . 1 Critical Kills . | . . . Critical Parts Destroyed . | . . . Critical Strikes . | . . . Melee Attacks 2 | . 2 . Impact . | . . . Slashing . | . . . Piercing . | . . . Sneak Attacks 1 | . 1 . Combat Hostiles . | . . . Follow-up Attacks . | . . . Damage Inflicted 51 | . . 51 Guns 51 | . . 51 Cannons . | . . . Explosions . | . . . Melee . | . . . Ramming . | . . . Kinetic 51 | . . 51 Thermal . | . . . Explosive . | . . . Electromagnetic . | . . . Impact . | . . . Slashing . | . . . Piercing . | . . . Highest Corruption . | . . . Average Corruption . | . . . Corruption Purged . | . . . Corruption Blocked . | . . . Overload Shots . | . . . Overflow Damage . | . . . Projectiles . | . . . Explosions . | . . . Melee . | . . . Knockbacks . | . . . Impact . | . . . Kinetic . | . . . Secondary . | . . . Self-Inflicted Damage . | . . . Shots . | . . . Rammed . | . . . Targets Rammed . | . . . Kicked . | . . . Crushed . | . . . Highest Temperature 15 | . . 15 Average Temperature 10 | . . 10 Received Heat Transfer 42 | . . 42 Siege Activations . | . . . Martial Activations . | . . . Shielding Activations . | . . . Robots Disrupted . | . . . Combat Hostiles . | . . . Robots Corrupted . | . . . Combat Hostiles . | . . . Parts Fried . | . . . Impact Corruptions . | . . . Robots Melted . | . . . Combat Hostiles . | . . . Parts Melted . | . . . Heat Transferred . | . . . Parts Sabotaged . | . . . Parts Stolen . | . . . Parts Stripped . | . . . Power Chain Reactions . | . . . Alert | -11 -10 -10 ------- Run | Yrd Mat Sub Maximum Alert Level . | . . . Low Security (%) 100 | 100 100 . Level 1 . | . . . Level 2 . | . . . Level 3 . | . . . Level 4 . | . . . Level 5 . | . . . High Security . | . . . Max Security . | . . . Peak Influence . | . . . Initial . | . . . Average . | . . . Influence Increases . | . . . Influence Decreases . | . . . Squads Dispatched 1 | . 1 . Investigation 1 | . 1 . Extermination . | . . . Reinforcement . | . . . Assault . | . . . Garrison . | . . . Intercept . | . . . Searches Triggered . | . . . Construction Impeded . | . . . Haulers Reinforced . | . . . Active Scanning Responses . | . . . Cargo Convoy Interrupts . | . . . Stealth | -11 -10 -10 --------- Run | Yrd Mat Sub Distress Signals 1 | . 1 . Communications Jammed . | . . . Distress Signals . | . . . Times Spotted 6 | . 2 4 Peak Tracking Total 5 | . 5 3 Tactical Retreats . | . . . Traps | -11 -10 -10 ------- Run | Yrd Mat Sub Traps Triggered . | . . . Indirectly . | . . . Trap Hack Attempts . | . . . Triggered . | . . . Disarmed . | . . . Reprogrammed . | . . . Reused . | . . . Traps Extracted . | . . . Installed . | . . . Triggered . | . . . Machines | -11 -10 -10 ---------- Run | Yrd Mat Sub Machines Disabled . | . . . Max in Single Turn . | . . . Machines Repaired . | . . . Machines Dismantled . | . . . Machines Sabotaged . | . . . Overloaded Fab Kills . | . . . Hacking | -11 -10 -10 --------- Run | Yrd Mat Sub Machines Accessed 1 | . 1 . Terminals 1 | . 1 . Fabricators . | . . . Repair Stations . | . . . Recycling Units . | . . . Scanalyzers . | . . . Garrison Access . | . . . Total Hacks 1 | . 1 . Successful 1 | . 1 . Failed . | . . . Catastrophic . | . . . Database Lockouts . | . . . Manual . | . . . Terminals 1 | . 1 . Fabricators . | . . . Repair Stations . | . . . Recycling Units . | . . . Scanalyzers . | . . . Garrison Access . | . . . Terminal Hacks 1 | . 1 . Branch Access Points 1 | . 1 . Fabricator Hacks . | . . . Repair Station Hacks . | . . . Recycling Unit Hacks . | . . . Scanalyzer . | . . . Garrison Access Hacks . | . . . Unauthorized Hacks . | . . . Terminals . | . . . Fabricators . | . . . Repair Stations . | . . . Recycling Units . | . . . Scanalyzers . | . . . Garrison Access . | . . . Data Cores Recovered . | . . . Used . | . . . Hacking Detections . | . . . Full Trace Events . | . . . Feedback Events . | . . . Feedback Blocked . | . . . Robot Schematics Acquired . | . . . Robots Built . | . . . Authchips . | . . . Time . | . . . Total Robot Build Rating . | . . . Part Schematics Acquired . | . . . Parts Built . | . . . Authchips . | . . . Time . | . . . Total Part Build Rating . | . . . Part Studies Acquired . | . . . Parts Repaired . | . . . Time . | . . . Parts Recycled . | . . . Recycled Matter . | . . . Retrieved Matter . | . . . Retrieved Components . | . . . Parts Scanalyzed . | . . . Part Schematics Acquired . | . . . Parts Damaged . | . . . Bothacking | -11 -10 -10 ------------ Run | Yrd Mat Sub Used RIF Installer . | . . . Robots Hacked 1 | . 1 . Non-combat 1 | . 1 . Combat . | . . . Robot Hacks Applied 1 | . 1 . parse_system 1 | . 1 . Relay Couplers Released . | . . . Fabnet Peak Effective % . | . . . Robots Rewired . | . . . Allies Hacked . | . . . Hacks Repelled . | . . . Allies | -11 -10 -10 -------- Run | Yrd Mat Sub Total Allies . | . . . Largest Group . | . . . Highest-Rated Group . | . . . Highest-Rated Ally . | . . . Total Orders . | . . . Ally Attacks . | . . . Total Damage . | . . . Kills . | . . . Allies Corrupted . | . . . Allies Melted . | . . . Intel | -11 -10 -10 ------- Run | Yrd Mat Sub Active Infowar (turns) . | . . . Robot Analysis Total . | . . . Derelict Logs Recovered 1 | . . 1 Drone Launches . | . . . Drone Recoveries . | . . . Exploration | -11 -10 -10 ------------- Run | Yrd Mat Sub Turns Passed 743 | 61 321 361 Spaces Moved 579 | 60 260 259 Core 3 | 3 . . Treads . | . . . Legs 88 | . . 88 Wheels 488 | 57 260 171 Hover . | . . . Flight . | . . . Fastest Speed 50 | 50 80 80 Average Speed 95 | 78 100 93 Slowest Speed 140 | 80 140 120 Overloaded Moves . | . . . Propulsion Burnouts . | . . . Robots Hopped . | . . . Potential Cave-ins . | . . . Cave-ins Triggered . | . . . Exploration Rate (%) 20 | 3 46 13 Regions Visited 2 Branch Regions 1 Pre-discovered Areas 1 | . . 1 Known Exits Taken . | . . . Unknown Exits Taken 2 | 1 1 . Scrap Searched 1 | . . 1 Spaces Dug . | . . . Terrain Destroyed . | . . . Melee . | . . . Projectile . | . . . AOE . | . . . Terrain Rammed . | . . . Walls Destroyed . | . . . Machines Disabled . | . . . Actions | -11 -10 -10 --------- Run | Yrd Mat Sub Total 691 | 71 307 313 Wait 33 | 1 27 5 Move 577 | 59 259 259 Hop . | . . . Pick Up 13 | 5 6 2 Fast Attach 7 | 5 1 1 Attach 5 | 1 . 4 Detach 1 | . 1 . Swap 3 | . 3 . Drop 3 | . 2 1 Fire 47 | . 6 41 Melee 2 | . 2 . Ram . | . . . Kick . | . . . Crush . | . . . Escape Stasis . | . . . Rewire . | . . . Trap . | . . . Miscellaneous . | . . . Route ------- -11/Scrapyard -10/Materials (discovered 2 exits: *Min / [*Sub]) -10/Subcaves History --------- Turn | Location | Event 13 | -11/Scrapyard | Discovered new exit (range 16) 62 | -11/Scrapyard | Entered Materials 63 | -10/Materials | Met a group of wandering Federalists 266 | -10/Materials | Lost 3 allies 268 | -10/Materials | Discovered new exit (range 10) 282 | -10/Materials | Identified exit to Mines 325 | -10/Materials | Build established: Mutant 340 | -10/Materials | Discovered new exit (range 5) 383 | -10/Materials | Entered Subcaves 384 | -10/Subcaves | Continued accompanying wandering Federalists (1) 384 | -10/Subcaves | Approached by a straggling Scientist 603 | -10/Subcaves | Core integrity fell below 50% 646 | -10/Subcaves | Learned location of Storage (-7) 653 | -10/Subcaves | Lost 5 parts (1p2n2w) 734 | -10/Subcaves | Core integrity fell below 20% 744 | -10/Subcaves | Destroyed by OW-CZI(R) with Subdweller Laser Last Messages --------------- AM-718(c): "I think it's somewhere southwest of here" Acquired Flamer. AM-718(c): "I think it's somewhere southwest of here" AM-718(c): "I think it's somewhere west of here" Wheel destroyed. AM-718(c): "I think it's somewhere west of here" Assault Rifle destroyed. Flamer destroyed. Lgt. Ion Engine destroyed. AM-718(c): "I think it's somewhere west of here" Acquired derelict log, extracted data. World map updated: -7/Storage. Lgt. Assault Rifle destroyed. AM-718(c): "I think it's somewhere west of here" AM-718(c) destroyed. Lgt. Ion Engine destroyed. Mak. Light Armor Plating destroyed. Subatomizers dissect the Machine Analyzer. BB-Z8D(R) destroyed. Acquired Wheel. Map ----- +----------------------------------------------------+ | ??????????????????????????????????## ##? | | ??????????????????????????????????# ## # #?# | | ??????????????????????????????????######## ##?# | | ?????????????????????????????????????????## #??# | | ??????????????????????????????????????????### #??# | | ????????????????????????????????????????????###### | | ?????????????????????????????????????????????## ## | | ?????????????????????????????????????????????# | | ????????????????????????????????????????????## | | ????????????????????????????????????????????# # | | ????????????????????????????????????????????# " "# | | ????????????????????????????????????????????## | | ?????????????????????????????????????????????# " | | ?????????????????????????????????????????????# " | | ?????????????????????????#???????????????????# " | | ?????????????????????????"???????????????????## | | ????????????????????????# ##??????????????????# | | ?????????####???????????? ##?????????????????# | | ???####### ##???????????# <###???????????????## | | #### # # = ##?###????### ## ###????????????### | | #" &%*R ### ##??## < < ##????????####" | | "" # ### R #### #????????#""" """ | | " ##?#### ## #????????#"" """" | | # ####?????#### ## ##???????# # | | ###???????????## ###???### ### | | ???????????????### %@ ## ##### | | ??????????????????### ## ## | | ????????????????????##### # ## ## #?? | | ????????????????????????## ############??# | | ?????????????????????????## #??????????????# | | ??????????????????????????## #??????????????? | | ???????????????????????????## #??????????????? | | ????????????????????????????## #?????????????? | | ?????????????????????????????#### #?????????????? | | ?????????????????????????????????###?????????????? | | ?????????????????????????????????????????????????? | | ?????????????????????????????????????????????????? | | ?????????????????????????????????????????????????? | | ?????????????????????????????????????????????????? | | ?????????????????????????????????????????????????? | | ?????????????????????????????????????????????????? | | ?????????????????????????????????????????????????? | | ?????????????????????????????????????????????????? | | ?????????????????????????????????????????????????? | | ?????????????????????????????????????????????????? | | ?????????????????????????????????????????????????? | | ?????????????????????????????????????????????????? | | ?????????????????????????????????????????????????? | | ?????????????????????????????????????????????????? | | | +----------------------------------------------------+ Best States ------------- Heat Dissipation 25 Energy Generation 10 Energy Capacity 125 Matter Stores 300 Matter Capacity 300 Sight Range 16 Terrain Scan Density 10 Armor Coverage 100 Resistance: KI 20 Resistance: TH 20 Resistance: EX 20 Resistance: EM 20 Resistance: I 20 Resistance: S 20 Resistance: P 20 Evasion (%) 55 Offensive Hacking 10 Item Schematics ----------------- None Robot Schematics ------------------ None Fabricated ------------ Nothing Repaired ---------- Nothing Studied --------- None Alien Tech Used ----------------- None Achievements -------------- Junior Dev Strength In Numbers Challenges ------------ None Game ------ Seed ThiefSuperquantumShotgun Manual? 0 Play Time 00:14:25 Cumulative 4.1 hours Start 2026.01.26 @ 03:39:36 End 2026.01.26 @ 03:51:27 Sessions 1 Manual Loads 0 Difficulty Adventurer Special Mode None Game No. 6 Rogue 0 Adventurer 6 Explorer 0 Win Type - Total 0 Types 0/0/0/0/0/0/0/0/0/0 Lore% 0 Gallery% 7 Achievement% 6 Wizard Run 0 Options --------- Layout 0 ASCII 0 Keyboard 1 Movement Arrows Keybinds 0 Fullscreen 1 Font 18/SmallcapsGlow Map View 76x50 Zoom Use 0% Tactical HUD 0 Map Filters NONE Filters NONE Steam 1 RUN: f7ceb499-97ad-42dc-ac22-8ad01bdf5253